fUST/lending_fUST_20251007
["ID","MTS","AMOUNT","RATE_DAILY","PERIOD"]
[389790660,1759849838688,-300.0,0.00017837,2]
[389790661,1759849838699,-600.0,0.00017837,2]
[389790662,1759849838709,-151.0,0.00017889,2]
[389790663,1759849838719,-168.99728248,0.00017889,2]
[389790664,1759849838729,-230.01271824,0.00017889,2]
[389790665,1759849838739,-151.0,0.00017889,2]
[389790666,1759849838749,-151.29688684,0.00017889,2]
[389790667,1759849838759,-151.18641285,0.00017889,2]
[389790668,1759849838772,-151.0,0.00017889,2]
[389790669,1759849838782,-151.0,0.00017889,2]
[389790670,1759849838792,-151.0,0.00017889,2]
[389790671,1759849838802,-151.57643874,0.00017889,2]
[389790672,1759849838812,-500.0,0.00017889,2]
[389790673,1759849838823,-500.0,0.00017889,2]
[389790674,1759849838833,-151.0,0.00017889,2]
[389790675,1759849838845,-500.0,0.00017889,2]
[389790676,1759849838856,-500.0,0.00017889,2]
[389790677,1759849838867,-215.13416699,0.00017889,2]
[389790678,1759849838878,-500.0,0.00017889,2]
[389790679,1759849838889,-151.0,0.00017889,2]
[389790680,1759849838899,-1367.0,0.00017889,2]
[389790681,1759849838909,-151.0,0.00017889,2]
[389790682,1759849838919,-151.43135759,0.00017889,2]
[389790683,1759849838929,-151.0,0.00017889,2]
[389790684,1759849838939,-500.0,0.00017889,2]
[389790685,1759849838950,-151.0,0.00017889,2]
[389790686,1759849838960,-151.0,0.000179,2]
[389790687,1759849838969,-151.0,0.000179,2]
[389790688,1759849838979,-1879.30208398,0.00017928,2]
[389790689,1759849838989,-500.59789819,0.00017973,2]
[389790690,1759849838999,-355.66107437,0.00017973,2]
[389790691,1759849839009,-43105.77997824,0.0001799,2]
[389790692,1759849839021,-151.0,0.00018,2]
[389790693,1759849839031,-501.12521816,0.00018021,2]
[389790694,1759849839041,-298.40604511,0.00018021,2]
[389790695,1759849839051,-500.97618271,0.00018021,2]
[389790696,1759849839061,-1000.0,0.00018021,2]
[389790697,1759849839071,-501.8332846,0.00018021,2]
[389790698,1759849839082,-1000.0,0.00018021,2]
[389790699,1759849839092,-501.44821906,0.00018021,2]
[389790700,1759849839102,-502.85302733,0.00018021,2]
[389790701,1759849839112,-1000.0,0.00018021,2]
[389790702,1759849839123,-1000.0,0.00018021,2]
[389790703,1759849839133,-1000.0,0.00018021,2]
[389790704,1759849839143,-1000.0,0.00018021,2]
[389790705,1759849839153,-1000.0,0.00018021,2]
[389790706,1759849839163,-637.7,0.00018023,2]
[389790707,1759849839174,-151.0,0.000181,2]
[389790708,1759849839184,-151.0,0.000181,2]
[389790709,1759849839194,-8385.48911323,0.00018123,2]
[389790710,1759849839204,-151.0,0.00018163,2]
[389790711,1759849839214,-151.0,0.00018163,2]
[389790712,1759849839224,-205.3908823,0.00018163,2]
[389790713,1759849839235,-500.82343283,0.00018163,2]
[389790714,1759849839245,-500.0,0.00018163,2]
[389790715,1759849839255,-151.0,0.00018163,2]
[389790716,1759849839264,-500.0,0.00018163,2]
[389790717,1759849839278,-500.0,0.00018163,2]
[389790718,1759849839287,-500.0,0.00018163,2]
[389790719,1759849839297,-151.0,0.00018163,2]
[389790720,1759849839306,-1367.0,0.00018163,2]
[389790721,1759849839315,-151.0,0.00018163,2]
[389790722,1759849839325,-151.0,0.00018163,2]
[389790723,1759849839334,-500.0,0.00018163,2]
[389790724,1759849839344,-151.0,0.00018163,2]
[389790725,1759849839353,-433.64777638,0.00018183,2]
[389790726,1759849839362,-1879.30208398,0.00018198,2]
[389790727,1759849839372,-151.0,0.000183,2]
[389790728,1759849839382,-345.0,0.00018331,2]
[389790729,1759849839391,-500.0,0.00018353,2]
[389790730,1759849839401,-1000.0,0.00018356,2]
[389790731,1759849839410,-151.0,0.000184,2]
[389790732,1759849839420,-151.0,0.000184,2]
[389790733,1759849839429,-151.0,0.00018437,2]
[389790734,1759849839439,-186.61502716,0.00018437,2]
[389790735,1759849839447,-500.0,0.00018437,2]
[389790736,1759849839457,-151.40055561,0.00018437,2]
[389790737,1759849839466,-151.0,0.00018437,2]
[389790738,1759849839475,-500.90172451,0.00018437,2]
[389790739,1759849839485,-152.9147262,0.00018437,2]
[389790740,1759849839499,-151.0,0.00018437,2]
[389790741,1759849839509,-1367.0,0.00018437,2]
[389790742,1759849839518,-151.0,0.00018437,2]
[389790743,1759849839533,-500.0,0.00018437,2]
[389790744,1759849839543,-151.0,0.00018437,2]
[389790745,1759849839552,-1879.30208398,0.00018468,2]
[389790746,1759849839562,-151.0,0.000185,2]
[389790747,1759849839575,-847.91586692,0.00018568,2]
[389790748,1759849839585,-1500.0,0.00018568,2]
[389790749,1759849839594,-1500.0,0.00018568,2]
[389790750,1759849839603,-1500.0,0.00018568,2]
[389790751,1759849839613,-512.5295479,0.00018568,2]
[389790752,1759849839622,-1500.0,0.00018568,2]
[389790753,1759849839632,-763.76126891,0.00018568,2]
[389790754,1759849839641,-151.0,0.000186,2]
[389790755,1759849839650,-1000.0,0.0001863,2]
[389790756,1759849839660,-151.0,0.000187,2]
[389790757,1759849839669,-151.0,0.00018711,2]
[389790758,1759849839678,-380.59985086,0.00018711,2]
[389790759,1759849839688,-198.02716197,0.00018711,2]
[389790760,1759849839697,-1367.0,0.00018711,2]
[389790761,1759849839707,-151.0,0.00018711,2]
[389790762,1759849839716,-500.0,0.00018711,2]
[389790763,1759849839725,-198.0,0.00018711,2]
[389790764,1759849839735,-151.0,0.000188,2]
[389790765,1759849839744,-985.86,0.00018848,3]
[389790766,1759849839753,-492.92,0.00018848,3]
[389790767,1759849839762,-151.0,0.000189,2]
[389790768,1759849839774,-151.0,0.000189,2]
[389790769,1759849839783,-417.47746486,0.00018901,2]
[389790771,1759849839793,-1000.0,0.00018904,2]
[389790773,1759849839803,-160.0,0.00018922,2]
[389790775,1759849839812,-473.07030151,0.00018983,2]
[389790778,1759849839822,-198.29765707,0.00018985,2]
[389790779,1759849839832,-1367.0,0.00018985,2]
[389790780,1759849839842,-194.81870126,0.00018985,2]
[389790781,1759849839851,-420.0,0.00018995,2]
[389790782,1759849839860,-420.0,0.00018995,2]
[389790783,1759849839870,-151.0,0.00019,2]
[389790784,1759849839880,-49090.0,0.00019,2]
[389790785,1759849839890,-1680.0,0.0001909,2]
[389790786,1759849839899,-151.0,0.000191,2]
[389790787,1759849839908,-2000.0,0.00019116,2]
[389790788,1759849839918,-2000.0,0.00019116,2]
[389790789,1759849839927,-1090.40964009,0.00019116,2]
[389790791,1759849839937,-2000.0,0.00019116,2]
[389790793,1759849839946,-533.72506543,0.00019127,2]
[389790795,1759849839955,-160.0,0.00019127,2]
[389790796,1759849839964,-402.02512307,0.00019127,2]
[389790798,1759849839975,-234.20938206,0.00019127,2]
[389790801,1759849839985,-351.36039823,0.00019144,2]
[389790802,1759849839995,-1000.0,0.00019178,2]
[389790805,1759849840004,-500.0,0.00019178,2]
[389790806,1759849840014,-151.36892429,0.00019178,2]
[389790808,1759849840027,-3307.59957628,0.00019178,2]
[389790810,1759849840037,-151.0,0.000192,2]
[389790812,1759849840046,-1367.0,0.00019259,2]
[389790814,1759849840057,-151.0,0.000193,2]
[389790816,1759849840067,-300.0,0.00019315,2]
[389790818,1759849840077,-3000.0,0.000194,2]
[389790820,1759849840087,-151.0,0.000194,2]
[389790822,1759849840097,-151.0,0.000194,2]
[389790824,1759849840107,-385.89315173,0.00019402,2]
[389790826,1759849840116,-301.60032361,0.00019406,2]
[389790828,1759849840125,-3000.0,0.0001941,2]
[389790829,1759849840134,-3000.0,0.0001942,2]
[389790831,1759849840144,-3000.0,0.0001943,2]
[389790832,1759849840153,-3000.0,0.0001944,2]
[389790835,1759849840163,-3000.0,0.0001945,2]
[389790837,1759849840172,-557.35058289,0.00019452,2]
[389790839,1759849840182,-1000.0,0.00019452,2]
[389790841,1759849840191,-528.52332229,0.00019452,2]
[389790843,1759849840202,-3000.0,0.0001946,2]
[389790845,1759849840211,-3000.0,0.0001947,2]
[389790847,1759849840221,-260.0,0.0001947,2]
[389790875,1759849840490,-500.0,0.00019473,2]
[389790877,1759849840500,-500.0,0.00019473,2]
[389790879,1759849840509,-500.0,0.00019473,2]
[389790881,1759849840519,-500.0,0.00019473,2]
[389790882,1759849840531,-341.61620481,0.00019473,2]
[389790885,1759849840541,-500.0,0.00019473,2]
[389790886,1759849840549,-500.0,0.00019473,2]
[389790888,1759849840559,-500.0,0.00019473,2]
[389790890,1759849840569,-500.0,0.00019473,2]
[389790892,1759849840578,-500.0,0.00019473,2]
[389790894,1759849840588,-500.0,0.00019473,2]
[389790896,1759849840598,-500.0,0.00019473,2]
[389790898,1759849840607,-500.0,0.00019473,2]
[389790900,1759849840617,-500.0,0.00019473,2]
[389790902,1759849840627,-302.09070511,0.00019473,2]
[389790904,1759849840636,-200.61392995,0.00019473,2]
[389790906,1759849840644,-500.0,0.00019473,2]
[389790908,1759849840654,-500.0,0.00019473,2]
[389790910,1759849840664,-282.32951854,0.00019473,2]
[389790912,1759849840673,-170.92839409,0.00019473,2]
[389790914,1759849840683,-517.91923232,0.00019473,2]
[389790916,1759849840692,-500.0,0.00019473,2]
[389790918,1759849840702,-500.0,0.00019473,2]
[389790919,1759849840711,-500.0,0.00019473,2]
[389790920,1759849840720,-500.0,0.00019473,2]
[389790922,1759849840729,-500.0,0.00019473,2]
[389790924,1759849840739,-449.72422841,0.00019473,2]
[389790925,1759849840747,-627.73257475,0.00019473,2]
[389790927,1759849840756,-500.0,0.00019473,2]
[389790928,1759849840766,-500.0,0.00019473,2]
[389790929,1759849840777,-500.0,0.00019473,2]
[389790930,1759849840787,-500.0,0.00019473,2]
[389790931,1759849840796,-500.0,0.00019473,2]
[389790932,1759849840805,-500.0,0.00019473,2]
[389790933,1759849840814,-500.0,0.00019473,2]
[389790934,1759849840823,-500.0,0.00019473,2]
[389790935,1759849840833,-291.31504269,0.00019473,2]
[389790936,1759849840843,-200.19353786,0.00019473,2]
[389790937,1759849840852,-500.0,0.00019473,2]
[389790938,1759849840862,-500.0,0.00019473,2]
[389790939,1759849840871,-500.0,0.00019473,2]
[389790940,1759849840880,-500.0,0.00019473,2]
[389790941,1759849840890,-500.0,0.00019473,2]
[389790942,1759849840900,-500.0,0.00019473,2]
[389790943,1759849840910,-500.0,0.00019473,2]
[389790944,1759849840920,-500.0,0.00019473,2]
[389790945,1759849840930,-255.66736951,0.00019473,2]
[389790946,1759849840939,-500.0,0.00019473,2]
[389790947,1759849840948,-500.0,0.00019473,2]
[389790948,1759849840958,-500.0,0.00019473,2]
[389790949,1759849840967,-500.0,0.00019473,2]
[389790950,1759849840977,-527.12120474,0.00019473,2]
[389790951,1759849840987,-500.0,0.00019473,2]
[389790952,1759849840996,-150.56950836,0.00019473,2]
[389790953,1759849841006,-500.0,0.00019473,2]
[389790954,1759849841016,-500.0,0.00019473,2]
[389790955,1759849841028,-500.0,0.00019473,2]
[389790956,1759849841037,-500.0,0.00019473,2]
[389790957,1759849841047,-500.0,0.00019473,2]
[389790958,1759849841056,-500.0,0.00019473,2]
[389790959,1759849841066,-500.0,0.00019473,2]
[389790960,1759849841076,-500.0,0.00019473,2]
[389790961,1759849841085,-500.0,0.00019473,2]
[389790962,1759849841094,-510.46914813,0.00019473,2]
[389790963,1759849841104,-500.0,0.00019473,2]
[389790964,1759849841113,-526.71245322,0.00019473,2]
[389790965,1759849841122,-500.0,0.00019473,2]
[389790966,1759849841132,-500.0,0.00019473,2]
[389790967,1759849841141,-500.0,0.00019473,2]
[389790968,1759849841149,-203.67230258,0.00019473,2]
[389790969,1759849841158,-500.0,0.00019473,2]
[389790970,1759849841167,-163.92239522,0.00019473,2]
[389790971,1759849841176,-500.0,0.00019473,2]
[389790972,1759849841185,-500.0,0.00019473,2]
[389790973,1759849841195,-500.0,0.00019473,2]
[389790974,1759849841204,-500.0,0.00019473,2]
[389790975,1759849841213,-500.0,0.00019473,2]
[389790976,1759849841222,-3000.0,0.0001948,2]
[389790977,1759849841231,-3000.0,0.0001949,2]
[389790978,1759849841240,-3000.0,0.000195,2]
[389790979,1759849841248,-322907.99697201,0.000195,2]
[389790980,1759849841257,-3000.0,0.0001951,2]
[389790981,1759849841266,-3000.0,0.0001952,2]
[389790982,1759849841278,-3000.0,0.0001953,2]
[389790983,1759849841287,-1367.0,0.00019533,2]
[389790984,1759849841296,-3000.0,0.0001954,2]
[389790985,1759849841305,-3000.0,0.0001955,2]
[389790986,1759849841314,-3000.0,0.0001956,2]
[389790987,1759849841323,-3000.0,0.0001957,2]
[389790988,1759849841332,-3000.0,0.0001958,2]
[389790989,1759849841341,-3000.0,0.0001959,2]
[389790990,1759849841349,-500.0,0.0001959,2]
[389790991,1759849841358,-151.0,0.0001959,2]
[389790992,1759849841367,-151.0,0.0001959,2]
[389790993,1759849841376,-301.999999,0.0001959,2]
[389790994,1759849841385,-151.0,0.0001959,2]
[389790995,1759849841394,-151.0,0.0001959,2]
[389790996,1759849841403,-3000.0,0.000196,2]
[389790997,1759849841412,-3000.0,0.0001961,2]
[389790998,1759849841422,-3000.0,0.0001962,2]
[389790999,1759849841431,-720.0,0.0001962,2]
[389791000,1759849841440,-3000.0,0.0001963,2]
[389791001,1759849841453,-3000.0,0.0001964,2]
[389791002,1759849841462,-3000.0,0.0001965,2]
[389791003,1759849841471,-3000.0,0.0001966,2]
[389791004,1759849841481,-2500.0,0.00019664,2]
[389791005,1759849841494,-2500.0,0.00019664,2]
[389791006,1759849841503,-2500.0,0.00019664,2]
[389791007,1759849841512,-3000.0,0.0001967,2]
[389791008,1759849841524,-3000.0,0.0001968,2]
[389791009,1759849841534,-3000.0,0.0001969,2]
[389791010,1759849841543,-3000.0,0.000197,2]
[389791011,1759849841552,-177.11105443,0.00019705,2]
[389791012,1759849841562,-3000.0,0.0001971,2]
[389791013,1759849841572,-3000.0,0.0001972,2]
[389791014,1759849841582,-1000.0,0.00019726,2]
[389791015,1759849841591,-3000.0,0.0001973,2]
[389791016,1759849841600,-3000.0,0.0001974,2]
[389791017,1759849841609,-3000.0,0.0001975,2]
[389791018,1759849841619,-3000.0,0.0001976,2]
[389791019,1759849841628,-3000.0,0.0001977,2]
[389791020,1759849841638,-3000.0,0.0001978,2]
[389791021,1759849841647,-512.49282663,0.00019783,2]
[389791022,1759849841656,-3000.0,0.0001979,2]
[389791023,1759849841665,-3000.0,0.000198,2]
[389791024,1759849841674,-1367.0,0.00019807,2]
[389791025,1759849841683,-3000.0,0.0001981,2]
[389791026,1759849841692,-3000.0,0.0001982,2]
[389791027,1759849841702,-3000.0,0.0001983,2]
[389791028,1759849841711,-3000.0,0.0001984,2]
[389791029,1759849841720,-3000.0,0.0001985,2]
[389791030,1759849841729,-3000.0,0.0001986,2]
[389791031,1759849841738,-500.0,0.00019864,2]
[389791032,1759849841747,-151.0,0.00019864,2]
[389791033,1759849841756,-151.0,0.00019864,2]
[389791034,1759849841765,-257.23413138,0.00019864,2]
[389791035,1759849841776,-3000.0,0.0001987,2]
[389791036,1759849841785,-3000.0,0.0001988,2]
[389791037,1759849841794,-3000.0,0.0001989,2]
[389791038,1759849841803,-3000.0,0.000199,2]
[389791039,1759849841813,-151.0,0.000199,2]
[389791040,1759849841822,-3000.0,0.0001991,2]
[389791041,1759849841832,-3000.0,0.0001992,2]
[389791042,1759849841842,-3742.910261,0.0001993,2]
[389791043,1759849841851,-500.0,0.00019973,2]
[389791044,1759849841861,-501.60946266,0.00019973,2]
[389791045,1759849841871,-500.0,0.00019973,2]
[389791046,1759849841881,-500.0,0.00019973,2]
[389791047,1759849841890,-500.0,0.00019973,2]
[389791048,1759849841899,-257.05708716,0.00019985,7]
[389791049,1759849841909,-180.0342065,0.0002,2]
[389791050,1759849841923,-1000.0,0.0002,2]
[389791051,1759849841932,-302.9856958,0.0002,2]
[389791052,1759849841942,-303.04464238,0.0002,2]
[389791053,1759849841952,-1000.0,0.0002,4]
[389791054,1759849841962,-9625.53271883,0.00020006,2]
[389791055,1759849841972,-360.0,0.00020018,2]
[389791056,1759849841983,-163.1597617,0.00020021,2]
[389791057,1759849841993,-1000.0,0.00020021,2]
[389791058,1759849842003,-193.22369181,0.00020021,2]
[389791059,1759849842013,-1000.0,0.00020021,2]
[389791060,1759849842023,-1000.0,0.00020021,2]
[389791061,1759849842033,-1000.0,0.00020021,2]
[389791062,1759849842043,-1000.0,0.00020021,2]
[389791063,1759849842053,-1000.0,0.00020021,2]
[389791064,1759849842063,-1000.0,0.00020021,2]
[389791065,1759849842074,-587.52997671,0.00020021,2]
[389791066,1759849842085,-1103.92426928,0.00020021,2]
[389791067,1759849842095,-1000.0,0.00020021,2]
[389791068,1759849842106,-1000.0,0.00020021,2]
[389791069,1759849842116,-1000.0,0.00020021,2]
[389791070,1759849842127,-1000.0,0.00020021,2]
[389791071,1759849842138,-1000.0,0.00020021,2]
[389791072,1759849842149,-742.43363358,0.00020021,2]
[389791073,1759849842159,-1000.0,0.00020021,2]
[389791074,1759849842170,-1000.0,0.00020021,2]
[389791075,1759849842180,-1000.0,0.00020021,2]
[389791076,1759849842190,-1000.0,0.00020021,2]
[389791077,1759849842200,-213.64385673,0.00020021,2]
[389791078,1759849842209,-1000.0,0.00020021,2]
[389791079,1759849842219,-1000.0,0.00020021,2]
[389791080,1759849842228,-1000.0,0.00020021,2]
[389791081,1759849842238,-297.79577032,0.00020021,2]
[389791082,1759849842248,-200.45389814,0.00020021,2]
[389791083,1759849842258,-482.82349399,0.00020021,2]
[389791084,1759849842268,-1000.0,0.00020021,2]
[389791085,1759849842280,-231.36839168,0.00020021,2]
[389791086,1759849842290,-1000.0,0.00020021,2]
[389791087,1759849842299,-1000.0,0.00020021,2]
[389791088,1759849842309,-177.32915195,0.00020021,2]
[389791089,1759849842318,-1000.0,0.00020021,2]
[389791090,1759849842328,-1000.0,0.00020021,2]
[389791091,1759849842338,-1000.0,0.00020021,2]
[389791092,1759849842347,-1000.0,0.00020021,2]
[389791093,1759849842357,-1000.0,0.00020021,2]
[389791094,1759849842367,-1000.0,0.00020021,2]
[389791095,1759849842377,-1000.0,0.00020021,2]
[389791096,1759849842387,-1076.27279867,0.00020021,2]
[389791097,1759849842396,-1000.0,0.00020021,2]
[389791098,1759849842406,-417.96535294,0.00020021,2]
[389791099,1759849842415,-1000.0,0.00020021,2]
[389791100,1759849842425,-1000.0,0.00020021,2]
[389791101,1759849842435,-1000.0,0.00020021,2]
[389791102,1759849842445,-1000.0,0.00020021,2]
[389791103,1759849842455,-511.89809001,0.00020021,2]
[389791104,1759849842465,-1000.0,0.00020021,2]
[389791105,1759849842474,-1000.0,0.00020021,2]
[389791106,1759849842484,-1000.0,0.00020021,2]
[389791107,1759849842499,-1000.0,0.00020021,2]
[389791108,1759849842509,-1000.0,0.00020021,2]
[389791109,1759849842518,-1000.0,0.00020021,2]
[389791110,1759849842533,-1000.0,0.00020021,2]
[389791111,1759849842543,-537.51470739,0.00020021,2]
[389791112,1759849842553,-1000.0,0.00020021,2]
[389791113,1759849842563,-1000.0,0.00020021,2]
[389791114,1759849842577,-1367.0,0.00020081,2]
[389791115,1759849842587,-168.01695143,0.0002009,2]
[389791116,1759849842597,-354.894618,0.00020125,2]
[389791117,1759849842607,-500.0,0.00020138,2]
[389791118,1759849842617,-151.35091737,0.00020138,2]
[389791119,1759849842626,-151.0,0.00020138,2]
[389791120,1759849842636,-174.684,0.00020147,2]
[389791121,1759849842645,-491.0,0.00020153,2]
[389791122,1759849842655,-491.0,0.00020183,2]
[389791123,1759849842665,-602.649422,0.00020187,2]
[389791124,1759849842674,-3000.0,0.00020212,2]
[389791125,1759849842685,-3000.0,0.00020212,2]
[389791126,1759849842694,-3000.0,0.00020212,2]
[389791127,1759849842705,-491.0,0.00020229,2]
[389791128,1759849842714,-980.0,0.00020252,2]
[389791130,1759849842724,-630.0,0.00020252,2]
[389791132,1759849842733,-2158.0,0.00020252,2]
[389791133,1759849842743,-174.685,0.00020253,2]
[389791134,1759849842753,-1000.0,0.00020273,2]
[389791135,1759849842763,-491.0,0.00020282,2]
[389791136,1759849842774,-491.0,0.00020287,2]
[389791137,1759849842784,-151.0,0.000203,3]
[389791138,1759849842794,-491.0,0.00020354,2]
[389791139,1759849842803,-1367.0,0.00020355,2]
[389791140,1759849842814,-184.11331394,0.00020356,3]
[389791142,1759849842824,-157.29,0.00020386,2]
[389791143,1759849842834,-500.0,0.00020412,2]
[389791144,1759849842844,-198.0,0.00020412,2]
[389791145,1759849842854,-2000.0,0.000205,2]
[389791146,1759849842864,-2200.737,0.00020502,2]
[389791147,1759849842874,-491.0,0.00020515,2]
[389791148,1759849842885,-1000.0,0.00020521,2]
[389791149,1759849842901,-1000.0,0.00020521,2]
[389791150,1759849842910,-1000.0,0.00020521,2]
[389791151,1759849842920,-1000.0,0.00020521,2]
[389791152,1759849842930,-491.0,0.00020536,2]
[389791155,1759849842939,-151.70599437,0.00020547,2]
[389791158,1759849842950,-460.0,0.00020566,2]
[389791160,1759849842963,-52143.03294372,0.00020568,2]
[389791162,1759849842976,-151.0,0.00020568,7]
[389791165,1759849842986,-151.0,0.00020568,7]
[389791167,1759849842996,-1024.730886,0.00020568,7]
[389791169,1759849843006,-1024.730886,0.00020568,7]
[389791171,1759849843016,-1024.730886,0.00020568,7]
[389791173,1759849843029,-1024.730886,0.00020568,7]
[389791175,1759849843039,-432.621204,0.00020568,7]
[389791176,1759849843049,-151.0,0.00020568,7]
[389791177,1759849843060,-432.621204,0.00020568,7]
[389791178,1759849843070,-151.0,0.00020568,7]
[389791179,1759849843080,-432.621204,0.00020568,7]
[389791180,1759849843090,-432.621204,0.00020568,7]
[389791181,1759849843100,-151.0,0.00020568,7]
[389791183,1759849843111,-151.0,0.00020568,7]
[389791185,1759849843121,-1354.835159,0.00020568,7]
[389791187,1759849843131,-151.0,0.00020568,7]
[389791189,1759849843140,-151.0,0.00020568,7]
[389791191,1759849843150,-151.0,0.00020568,7]
[389791193,1759849843160,-1354.835159,0.00020568,7]
[389791195,1759849843170,-151.0,0.00020568,7]
[389791197,1759849843181,-1354.835159,0.00020568,7]
[389791199,1759849843192,-1354.835159,0.00020568,7]
[389791201,1759849843202,-259.541923,0.00020568,7]
[389791203,1759849843213,-151.0,0.00020568,7]
[389791205,1759849843223,-151.0,0.00020568,7]
[389791207,1759849843234,-151.0,0.00020568,7]
[389791209,1759849843244,-151.0,0.00020568,7]
[389791211,1759849843253,-151.0,0.00020568,7]
[389791213,1759849843263,-712.235839,0.00020568,7]
[389791215,1759849843273,-151.0,0.00020568,7]
[389791217,1759849843283,-712.235839,0.00020568,7]
[389791219,1759849843293,-151.0,0.00020568,7]
[389791221,1759849843303,-151.0,0.00020568,7]
[389791223,1759849843313,-712.235839,0.00020568,7]
[389791225,1759849843323,-151.0,0.00020568,7]
[389791227,1759849843332,-712.235839,0.00020568,7]
[389791229,1759849843343,-158.576464,0.00020568,7]
[389791231,1759849843353,-151.0,0.00020568,7]
[389791234,1759849843363,-10000.0,0.00020568,7]
[389791236,1759849843372,-10000.0,0.00020568,7]
[389791238,1759849843382,-217.77541,0.00020568,7]
[389791240,1759849843392,-10000.0,0.00020568,7]
[389791241,1759849843402,-217.77541,0.00020568,7]
[389791243,1759849843411,-10000.0,0.00020568,7]
[389791246,1759849843421,-217.77541,0.00020568,7]
[389791248,1759849843431,-10000.0,0.00020568,7]
[389791250,1759849843441,-217.77541,0.00020568,7]
[389791252,1759849843450,-151.0,0.00020568,7]
[389791254,1759849843459,-151.0,0.00020568,7]
[389791256,1759849843469,-151.0,0.00020568,7]
[389791258,1759849843478,-151.0,0.00020568,7]
[389791260,1759849843491,-151.0,0.00020568,7]
[389791262,1759849843502,-218.264212,0.00020568,7]
[389791264,1759849843512,-151.0,0.00020568,7]
[389791266,1759849843522,-218.264212,0.00020568,7]
[389791268,1759849843534,-218.264212,0.00020568,7]
[389791270,1759849843543,-218.264212,0.00020568,7]
[389791272,1759849843553,-151.0,0.00020568,7]
[389791274,1759849843569,-151.0,0.00020568,7]
[389791276,1759849843586,-151.0,0.00020568,7]
[389791278,1759849843596,-151.320484,0.00020568,7]
[389791280,1759849843606,-151.0,0.00020568,7]
[389791282,1759849843618,-151.0,0.00020568,7]
[389791284,1759849843627,-151.0,0.00020568,7]
[389791286,1759849843637,-151.0,0.00020568,7]
[389791288,1759849843647,-151.0,0.00020568,7]
[389791290,1759849843657,-151.0,0.00020568,7]
[389791292,1759849843666,-190.443695,0.00020568,7]
[389791294,1759849843676,-190.443695,0.00020568,7]
[389791296,1759849843687,-190.443695,0.00020568,7]
[389791298,1759849843698,-190.443695,0.00020568,7]
[389791300,1759849843709,-153.068941,0.00020568,7]
[389791302,1759849843718,-1554.762305,0.00020568,7]
[389791304,1759849843728,-151.0,0.00020568,7]
[389791307,1759849843738,-1554.762305,0.00020568,7]
[389791309,1759849843747,-1554.762305,0.00020568,7]
[389791310,1759849843756,-1554.762305,0.00020568,7]
[389791312,1759849843766,-153.74492,0.00020568,7]
[389791315,1759849843780,-151.0,0.00020568,7]
[389791317,1759849843790,-151.0,0.00020568,7]
[389791318,1759849843801,-151.0,0.00020568,7]
[389791321,1759849843811,-151.0,0.00020568,7]
[389791323,1759849843820,-151.0,0.00020568,7]
[389791324,1759849843830,-151.0,0.00020568,7]
[389791327,1759849843840,-213.989612,0.00020568,7]
[389791329,1759849843850,-151.0,0.00020568,7]
[389791330,1759849843860,-1500.0,0.00020568,2]
[389791332,1759849843870,-1500.0,0.00020568,2]
[389791334,1759849843879,-1500.0,0.00020568,2]
[389791336,1759849843889,-1500.0,0.00020568,2]
[389791338,1759849843901,-1500.0,0.00020568,2]